bitfinex/quotes_BTCUSD_20240701
["timestamp","ask_amount","ask_price","bid_price","bid_amount"]
[1719872907519,3.72062613,62889.0,62888.0,6.55447806]
[1719872907707,3.70662613,62889.0,62888.0,6.55447806]
[1719872907945,3.42062613,62889.0,62888.0,6.55447806]
[1719872908164,3.10260613,62889.0,62888.0,6.55447806]
[1719872908627,3.08860613,62889.0,62888.0,6.55447806]
[1719872908841,2.77260613,62889.0,62888.0,6.55447806]
[1719872909062,2.03770166,62889.0,62888.0,6.55447806]
[1719872909264,1.09830217,62889.0,62888.0,6.55447806]
[1719872909489,1.92335217,62889.0,62888.0,6.55447806]
[1719872909732,2.21137217,62889.0,62888.0,6.55447806]
[1719872910453,2.18633072,62889.0,62888.0,6.55447806]
[1719872910665,1.89358177,62889.0,62888.0,6.55447806]
[1719872910877,1.87958177,62889.0,62888.0,6.55466824]
[1719872911053,1.89358177,62889.0,62888.0,6.55466824]
[1719872911386,1.57556177,62889.0,62888.0,6.55466824]
[1719872911591,1.56156177,62889.0,62888.0,6.55466824]
[1719872911718,1.87958177,62889.0,62888.0,6.55466824]
[1719872911958,1.89358177,62889.0,62888.0,6.55466824]
[1719872912313,1.87958177,62889.0,62888.0,6.55466824]
[1719872912529,1.56156177,62889.0,62888.0,6.55466824]
[1719872912733,1.57556177,62889.0,62888.0,6.55466824]
[1719872912953,1.89358177,62889.0,62888.0,6.55466824]
[1719872913163,1.57556177,62889.0,62888.0,6.55466824]
[1719872913575,1.89370804,62889.0,62888.0,6.55466824]
[1719872914014,1.55029072,62889.0,62888.0,6.55466824]
[1719872914218,1.58029072,62889.0,62888.0,6.55466824]
[1719872914448,1.9237081,62889.0,62888.0,6.55466824]
[1719872914979,1.9097081,62889.0,62888.0,6.55466824]
[1719872915177,2.31350661,62889.0,62888.0,6.55466824]
[1719872915381,2.70993709,62889.0,62888.0,6.55466824]
[1719872915625,2.72393709,62889.0,62888.0,6.55466824]
[1719872915998,3.10373709,62889.0,62888.0,6.55466824]
[1719872916199,2.80373709,62889.0,62888.0,6.55466824]
[1719872916609,2.80444075,62889.0,62888.0,6.55466824]
[1719872916807,2.81844075,62889.0,62888.0,6.55466824]
[1719872918142,2.80444075,62889.0,62888.0,6.55466824]
[1719872918727,3.11844075,62889.0,62888.0,6.55466824]
[1719872919151,3.1614961,62889.0,62888.0,6.55466824]
[1719872919356,3.1474961,62889.0,62888.0,6.55466824]
[1719872919751,3.16161096,62889.0,62888.0,6.55466824]
[1719872920769,3.41855549,62889.0,62888.0,6.55466824]
[1719872920971,3.46163762,62889.0,62888.0,6.55466824]
[1719872921182,3.77965762,62889.0,62888.0,6.55466824]
[1719872921351,3.76565762,62889.0,62888.0,6.55466824]
[1719872921720,3.14763762,62889.0,62888.0,6.55466824]
[1719872921837,3.46163762,62889.0,62888.0,6.55466824]
[1719872922240,3.77965762,62889.0,62888.0,6.55466824]
[1719872922445,3.76565762,62889.0,62888.0,6.55466824]
[1719872922642,3.77965762,62889.0,62888.0,6.55466824]
[1719872923136,3.77984698,62889.0,62888.0,6.55466824]
[1719872924157,4.24607922,62889.0,62888.0,6.55466824]
[1719872926244,4.12818147,62889.0,62888.0,6.55476824]
[1719872926463,4.02983333,62889.0,62888.0,6.55476824]
[1719872926655,4.17112377,62889.0,62888.0,6.55476824]
[1719872926787,4.32983335,62889.0,62888.0,6.55476824]
[1719872926986,3.71181335,62889.0,62888.0,6.55476824]
[1719872927256,3.62768547,62889.0,62888.0,6.55476824]
[1719872928425,3.71167122,62889.0,62888.0,6.55476824]
[1719872928599,3.62768547,62889.0,62888.0,6.55476824]
[1719872929374,3.64320389,62889.0,62888.0,6.55476824]
[1719872929522,3.71159825,62889.0,62888.0,6.55476824]
[1719872931228,3.71159825,62889.0,62888.0,6.55486824]
[1719872932593,3.7115552,62889.0,62888.0,6.55486824]
[1719872935849,3.7117057,62889.0,62888.0,6.55486824]
[1719872937041,3.7118057,62889.0,62888.0,6.55486824]
[1719872939007,3.51026147,62889.0,62888.0,6.55486824]
[1719872939224,3.71359133,62889.0,62888.0,6.55486824]
[1719872939427,3.51026147,62889.0,62888.0,6.55486824]
[1719872939627,3.71359101,62889.0,62888.0,6.55486824]
[1719872939853,3.38359101,62889.0,62888.0,6.55486824]
[1719872940229,2.89487101,62889.0,62888.0,6.55486824]
[1719872940556,2.42863877,62889.0,62888.0,6.55486824]
[1719872940872,2.45863877,62889.0,62888.0,6.55486824]
[1719872941068,2.44463877,62889.0,62888.0,6.55486824]
[1719872941276,2.44721975,62889.0,62888.0,6.55486824]
[1719872941477,1.88119253,62889.0,62888.0,6.55486824]
[1719872941697,1.47383171,62889.0,62888.0,6.55486824]
[1719872942306,1.47412808,62889.0,62888.0,6.55486824]
[1719872942741,1.46012808,62889.0,62888.0,6.55486824]
[1719872943237,1.47412808,62889.0,62888.0,6.55486824]
[1719872943638,1.46012808,62889.0,62888.0,6.55486824]
[1719872943862,1.41699396,62889.0,62888.0,6.55486824]
[1719872944069,1.43099396,62889.0,62888.0,6.55486824]
[1719872944268,1.43109396,62889.0,62888.0,6.55486824]
[1719872944616,0.56264098,62889.0,62888.0,7.52623024]
[1719872944769,0.85808016,62889.0,62888.0,7.52623024]
[1719872944945,0.83901658,62889.0,62888.0,7.52623024]
[1719872945778,0.5575774,62889.0,62888.0,7.52623024]
[1719872945988,0.5435774,62889.0,62888.0,7.52623024]
[1719872946328,0.5545774,62889.0,62888.0,7.52623024]
[1719872946541,0.50315581,62889.0,62888.0,7.54438092]
[1719872946924,0.49215581,62889.0,62888.0,7.54438092]
[1719872947119,0.50115581,62889.0,62888.0,7.54438092]
[1719872947876,0.49212709,62889.0,62888.0,7.54438092]
[1719872948160,0.09420929,62889.0,62888.0,8.06240592]
[1719872949119,0.08620929,62889.0,62888.0,8.06240592]
[1719872950145,0.09320929,62889.0,62888.0,8.06240592]
[1719872950341,0.09320929,62889.0,62888.0,8.38043092]
[1719872950561,0.08620929,62889.0,62888.0,8.38043092]
[1719872950737,0.0002,62889.0,62888.0,8.38043092]
[1719872950943,0.0022,62889.0,62888.0,8.38043092]
[1719872951184,0.0022,62889.0,62888.0,8.39899174]
[1719872952520,0.0022,62889.0,62888.0,8.38043092]
[1719872952863,0.0022,62889.0,62888.0,8.39899174]
[1719872953765,0.0022,62889.0,62888.0,8.38043092]
[1719872954128,0.0022,62889.0,62888.0,8.39899174]
[1719872954447,0.0022,62889.0,62888.0,8.38043092]
[1719872954625,0.0022,62889.0,62888.0,8.58433072]
[1719872954828,0.0022,62889.0,62888.0,8.90235572]
[1719872955029,0.0022,62889.0,62888.0,9.35239453]
[1719872957130,0.0022,62889.0,62888.0,8.58043092]
[1719872957331,0.0022,62889.0,62888.0,8.59899174]
[1719872957611,0.0002,62889.0,62888.0,8.59899174]
[1719872958788,0.0012,62889.0,62888.0,8.59999174]
[1719872959221,0.0012,62889.0,62888.0,8.39999174]
[1719872959416,0.0002,62889.0,62888.0,8.59899174]
[1719872959596,0.0012,62889.0,62888.0,8.59999174]
[1719872960142,0.0002,62889.0,62888.0,8.59899174]
[1719872960312,0.0002,62889.0,62888.0,8.59999174]
[1719872960518,0.0012,62889.0,62888.0,8.59999174]
[1719872961164,0.0012,62889.0,62888.0,8.61882085]
[1719872961952,0.0002,62889.0,62888.0,8.61782085]
[1719872962158,0.0012,62889.0,62888.0,8.61882085]
[1719872962688,0.0002,62889.0,62888.0,8.61782085]
[1719872962836,0.0012,62889.0,62888.0,8.61882085]
[1719872963449,0.0002,62889.0,62888.0,8.39926003]
[1719872963632,0.0012,62889.0,62888.0,8.40026003]
[1719872964075,0.0012,62889.0,62888.0,8.61882085]
[1719872964884,0.0012,62889.0,62888.0,8.40026003]
[1719872965079,0.0002,62889.0,62888.0,8.39926003]
[1719872965480,0.0002,62889.0,62888.0,8.40026003]
[1719872965481,0.0012,62889.0,62888.0,8.40026003]
[1719872965952,0.0002,62889.0,62888.0,8.39926003]
[1719872966271,0.0012,62889.0,62888.0,8.40026003]
[1719872966676,0.0002,62889.0,62888.0,8.39930222]
[1719872967093,0.04968523,62893.0,62892.0,1.13116768]
[1719872967294,0.04968523,62893.0,62892.0,1.13106768]
[1719872968948,0.05568523,62893.0,62892.0,1.13106768]
[1719872969353,0.38591443,62893.0,62892.0,1.13106768]
[1719872970296,0.38591443,62893.0,62892.0,1.112917]
[1719872970515,0.66735361,62893.0,62892.0,1.112817]
[1719872972545,0.6926413,62893.0,62892.0,1.112817]
[1719872972941,0.41120212,62893.0,62892.0,1.112817]
[1719872973143,0.41120212,62893.0,62892.0,1.13096768]
[1719872973144,0.36151689,62893.0,62892.0,1.13096768]
[1719872973388,0.006,62893.0,62892.0,1.13096768]
[1719872973830,0.006,62893.0,62892.0,1.20236768]
[1719872974031,0.006,62893.0,62892.0,1.2209285]
[1719872974204,0.006,62893.0,62892.0,1.79437248]
[1719872974423,0.04968523,62903.0,62902.0,0.81303568]
[1719872974643,0.4052823,62903.0,62902.0,0.98253568]
[1719872974796,0.47283393,62903.0,62902.0,1.13098968]
[1719872974972,0.4231487,62903.0,62902.0,1.13098968]
[1719872975414,0.37465692,62903.0,62902.0,1.13098968]
[1719872975773,0.38365692,62903.0,62902.0,1.13098968]
[1719872975969,0.34925003,62903.0,62902.0,1.13098968]
[1719872976085,0.37465961,62903.0,62902.0,1.13098968]
[1719872976288,0.37865961,62903.0,62902.0,1.13098968]
[1719872976491,0.37865961,62903.0,62902.0,1.13088968]
[1719872976897,0.37865961,62903.0,62902.0,1.13078968]
[1719872977101,0.37865961,62903.0,62902.0,1.13068968]
[1719872978223,0.37465961,62903.0,62902.0,1.13068968]
[1719872978443,0.37465961,62903.0,62902.0,1.1492505]
[1719872978444,0.35225003,62903.0,62902.0,1.1492505]
[1719872978658,0.35225003,62903.0,62902.0,1.13068968]
[1719872979780,0.33319018,62903.0,62902.0,1.13068968]
[1719872980780,0.33319018,62903.0,62902.0,1.13078968]
[1719872980979,0.33319018,62903.0,62902.0,1.1493505]
[1719872981176,0.33319018,62903.0,62902.0,1.14945865]
[1719872981606,0.33319018,62903.0,62902.0,1.46741265]
[1719872981973,0.33319018,62903.0,62902.0,1.62991265]
[1719872982186,0.33319018,62903.0,62902.0,1.97975163]
[1719872982382,0.003,62903.0,62902.0,2.8480204]
[1719872982608,0.003,62903.0,62902.0,2.6855204]
[1719872982782,0.003,62903.0,62902.0,2.9280204]
[1719872982963,0.00084,62915.0,62914.0,1.13047968]
[1719872983366,0.33096431,62915.0,62914.0,1.13037968]
[1719872983593,0.37562178,62915.0,62914.0,1.13037968]
[1719872984048,0.01995134,62915.0,62914.0,1.62917348]
[1719872984255,0.00084,62915.0,62914.0,2.27228825]
[1719872984468,0.00084,62915.0,62914.0,2.43478825]
[1719872985370,0.00184,62915.0,62914.0,2.43678825]
[1719872985864,0.00184,62915.0,62914.0,1.80541266]
[1719872986066,0.00184,62915.0,62914.0,2.00541266]
[1719872986311,0.00184,62915.0,62914.0,2.18647348]
[1719872987089,0.00184,62915.0,62914.0,2.43678825]
[1719872987456,0.00184,62915.0,62914.0,2.23668825]
[1719872987660,0.00184,62915.0,62914.0,2.43668825]
[1719872988383,0.00184,62915.0,62914.0,2.75458225]
[1719872988592,0.00184,62915.0,62914.0,2.43668825]
[1719872988793,0.00184,62915.0,62914.0,2.53668825]
[1719872988996,0.00084,62915.0,62914.0,2.90006061]
[1719872989392,0.00184,62915.0,62914.0,2.85458225]
[1719872989634,0.00184,62915.0,62914.0,2.90205296]
[1719872990598,0.00084,62915.0,62914.0,2.40109814]
[1719872990813,0.00084,62915.0,62914.0,2.53468825]
[1719872991026,0.00184,62915.0,62914.0,2.37918825]
[1719872991232,0.00184,62915.0,62914.0,2.52312743]
[1719872991439,0.00084,62915.0,62914.0,2.53468825]
[1719872991863,0.00184,62915.0,62914.0,2.52712743]
[1719872992046,0.00184,62915.0,62914.0,2.54568825]
[1719872992246,0.00084,62915.0,62914.0,2.55392457]
[1719872992380,0.00084,62915.0,62914.0,2.53536375]
[1719872992584,0.00184,62915.0,62914.0,2.56492457]
[1719872993404,0.00184,62915.0,62914.0,2.56482457]
[1719872993801,0.00084,62915.0,62914.0,2.53526375]
[1719872994027,0.00084,62915.0,62914.0,2.55382457]
[1719872994259,0.00184,62915.0,62914.0,2.56082457]
[1719872994639,0.00084,62915.0,62914.0,2.55382457]
[1719872995043,0.00184,62915.0,62914.0,2.56082457]
[1719872995247,0.00184,62915.0,62914.0,2.56099628]
[1719872995506,0.00184,62915.0,62914.0,2.54243546]
[1719872995623,0.00084,62915.0,62914.0,2.53543546]
[1719872995851,0.00084,62915.0,62914.0,2.55399628]
[1719872997077,0.00184,62915.0,62914.0,2.56099628]
[1719872997263,0.00184,62915.0,62914.0,2.14088151]
[1719872997490,0.00084,62915.0,62914.0,2.13388151]
[1719872997868,0.00184,62915.0,62914.0,2.14088151]
[1719872998583,0.00084,62915.0,62914.0,2.11532069]
[1719872998774,0.00184,62915.0,62914.0,2.12232069]
[1719872998977,0.00184,62915.0,62914.0,1.92232069]
[1719872999186,0.00184,62915.0,62914.0,1.11980071]
[1719872999429,0.00184,62915.0,62914.0,1.33725139]
[1719872999632,0.02120305,62915.0,62914.0,1.33725139]
[1719872999836,0.00194,62915.0,62914.0,1.33725139]
[1719873000038,0.00204,62915.0,62914.0,1.33725139]
[1719873000258,0.00204,62915.0,62914.0,1.13725139]
[1719873000259,0.02130305,62915.0,62914.0,1.13725139]
[1719873000464,0.02030305,62915.0,62914.0,1.29275139]
[1719873000681,0.02030305,62915.0,62914.0,1.29285139]
[1719873001346,0.02030305,62915.0,62914.0,1.28230071]
[1719873001347,0.02130305,62915.0,62914.0,1.28230071]
[1719873001484,0.02130305,62915.0,62914.0,0.48401271]
[1719873001485,0.47364223,62915.0,62914.0,0.48401271]
[1719873001658,0.19220305,62915.0,62914.0,0.48401271]
[1719873001870,0.19120305,62915.0,62914.0,0.47701271]
[1719873002065,0.19220305,62915.0,62914.0,0.81945739]
[1719873002272,0.19220305,62915.0,62914.0,0.80190671]
[1719873002487,0.47364223,62915.0,62914.0,0.80190671]
[1719873002737,0.19220305,62915.0,62914.0,0.80190671]
[1719873002943,0.19220305,62915.0,62914.0,0.81945739]
[1719873003157,0.19220305,62915.0,62914.0,0.80190671]
[1719873003354,0.47264223,62915.0,62914.0,0.79490671]
[1719873003633,0.52232746,62915.0,62914.0,0.47701271]
[1719873003809,0.56817678,62915.0,62914.0,0.47801271]
[1719873004044,0.52832746,62915.0,62914.0,0.47801271]
[1719873004274,0.52832746,62915.0,62914.0,0.16031871]
[1719873004689,0.59356469,62915.0,62914.0,0.00137171]
[1719873006036,0.55371537,62915.0,62914.0,0.16031871]
[1719873006367,0.55370191,62915.0,62914.0,0.16031871]
[1719873006775,0.59355123,62915.0,62914.0,0.16031871]
[1719873007236,0.59355123,62915.0,62914.0,0.00137171]
[1719873007904,0.55370191,62915.0,62914.0,0.00137171]
[1719873008238,0.59355123,62915.0,62914.0,0.00137171]
[1719873008560,0.57355123,62915.0,62914.0,0.00137171]
[1719873009217,0.57355123,62915.0,62914.0,0.00229571]
[1719873009470,0.54901678,62915.0,62914.0,0.00229571]
[1719873009688,0.57426993,62915.0,62914.0,0.00229571]
[1719873010733,0.53442061,62915.0,62914.0,0.16124271]
[1719873010948,0.53442061,62915.0,62914.0,0.47913671]
[1719873011166,0.57426993,62915.0,62914.0,0.47913671]
[1719873011348,0.57426993,62915.0,62914.0,0.16124271]
[1719873011564,0.62144697,62915.0,62914.0,0.16124271]
[1719873011911,0.62144697,62915.0,62914.0,0.00229571]
[1719873012320,0.78039097,62915.0,62914.0,0.00229571]
[1719873012536,0.78171597,62915.0,62914.0,0.00229571]
[1719873013179,0.78131713,62915.0,62914.0,0.00229571]
[1719873013534,0.78141713,62915.0,62914.0,0.00229571]
[1719873013927,0.78151713,62915.0,62914.0,0.00229571]
[1719873014518,1.09940613,62915.0,62914.0,0.00229571]
[1719873014938,1.41729513,62915.0,62914.0,0.00229571]
[1719873015161,1.60963411,62915.0,62914.0,0.00229571]
[1719873015785,1.62713258,62915.0,62914.0,0.00229571]
[1719873017642,1.62113258,62915.0,62914.0,0.00129571]
[1719873018063,1.63413258,62915.0,62914.0,0.00229571]
[1719873018262,1.95202158,62915.0,62914.0,0.00229571]
[1719873018751,1.95237262,62915.0,62914.0,0.00229571]
[1719873021509,2.3112085,62915.0,62914.0,0.00229571]
[1719873021891,2.18480671,62915.0,62914.0,0.00229571]
[1719873022141,2.31088849,62915.0,62914.0,0.00229571]
[1719873022352,0.93528973,62904.0,62897.0,0.7772]
[1719873022522,1.5650409,62904.0,62897.0,0.7772]
[1719873022728,1.93073775,62904.0,62897.0,0.7772]
[1719873023041,1.58279375,62904.0,62897.0,0.7772]
[1719873023243,1.61279375,62904.0,62897.0,0.7772]
[1719873023588,1.58279375,62904.0,62897.0,0.7772]
[1719873023790,1.59679375,62904.0,62897.0,0.7772]
[1719873024367,0.33112441,62894.0,62893.0,0.476997]
[1719873024497,0.37097373,62894.0,62893.0,0.476997]
[1719873024709,0.33112441,62894.0,62893.0,0.476997]
[1719873025421,0.35661536,62894.0,62893.0,0.476997]
[1719873025621,0.35661538,62894.0,62893.0,0.476997]
[1719873025861,0.3964647,62894.0,62893.0,0.158998]
[1719873026072,0.05668523,62894.0,62893.0,0.794998]
[1719873026270,0.05668523,62894.0,62893.0,0.476998]
[1719873026488,0.21808523,62894.0,62893.0,0.476998]
[1719873026637,0.42592441,62894.0,62893.0,0.476998]
[1719873026840,0.33812441,62894.0,62893.0,0.476998]
[1719873027262,0.33801923,62894.0,62893.0,0.476998]
[1719873027462,0.36372863,62894.0,62893.0,0.476998]
[1719873027823,0.37086855,62891.0,62890.0,4.198e-05]
[1719873028021,0.52987355,62891.0,62890.0,4.198e-05]
[1719873028143,0.64800721,62891.0,62890.0,4.198e-05]
[1719873028336,1.06072202,62891.0,62890.0,4.198e-05]
[1719873028571,0.79353239,62891.0,62890.0,4.198e-05]
[1719873028761,0.63452739,62891.0,62890.0,4.198e-05]
[1719873029194,0.63852739,62891.0,62890.0,4.198e-05]
[1719873029901,0.59867807,62891.0,62890.0,4.198e-05]
[1719873030077,0.63852739,62891.0,62890.0,4.198e-05]
[1719873030403,0.77982758,62891.0,62890.0,4.198e-05]
[1719873030697,0.79753239,62891.0,62890.0,4.198e-05]
[1719873031287,0.66976069,62891.0,62890.0,4.198e-05]
[1719873031623,0.55955588,62891.0,62890.0,4.198e-05]
[1719873031760,0.51970656,62891.0,62890.0,4.198e-05]
[1719873032120,0.55955588,62891.0,62890.0,4.198e-05]
[1719873032664,0.87756588,62891.0,62890.0,4.198e-05]
[1719873033064,0.89527069,62891.0,62890.0,4.198e-05]
[1719873033274,0.94576327,62891.0,62890.0,4.198e-05]
[1719873033905,0.97576327,62891.0,62890.0,4.198e-05]
[1719873034161,1.59631225,62891.0,62890.0,4.198e-05]
[1719873034478,1.570148,62891.0,62890.0,4.198e-05]
[1719873034634,1.57014931,62891.0,62890.0,4.198e-05]
[1719873034817,1.59569775,62891.0,62890.0,4.198e-05]
[1719873035018,1.62169775,62891.0,62890.0,4.198e-05]
[1719873035308,1.93970775,62891.0,62890.0,4.198e-05]
[1719873035479,1.95060775,62891.0,62890.0,4.198e-05]
[1719873035848,1.93960775,62891.0,62890.0,4.198e-05]
[1719873036354,1.95060775,62891.0,62890.0,4.198e-05]
[1719873036750,2.05060775,62891.0,62890.0,4.198e-05]
[1719873037577,2.04947583,62891.0,62890.0,4.198e-05]
[1719873037977,2.02402729,62891.0,62890.0,4.198e-05]
[1719873038182,2.04947587,62891.0,62890.0,4.198e-05]
[1719873038380,2.34947587,62891.0,62890.0,4.198e-05]
[1719873038583,2.0240001,62891.0,62890.0,4.198e-05]
[1719873038797,2.04944561,62891.0,62890.0,4.198e-05]
[1719873039396,2.34944561,62891.0,62890.0,4.198e-05]
[1719873040639,2.30012879,62891.0,62890.0,4.198e-05]
[1719873040845,2.34843168,62891.0,62890.0,4.198e-05]
[1719873041052,2.21325548,62891.0,62890.0,4.198e-05]
[1719873041672,2.21335548,62891.0,62890.0,4.198e-05]
[1719873042157,2.21335548,62891.0,62890.0,0.00014198]
[1719873042521,2.20235548,62891.0,62890.0,0.00014198]
[1719873042900,2.21635548,62891.0,62890.0,0.00014198]
[1719873043112,2.21635548,62891.0,62890.0,0.00106598]
[1719873043447,2.21719548,62891.0,62890.0,0.00106598]
[1719873043810,1.86918548,62891.0,62890.0,0.00106598]
[1719873044158,1.70436168,62891.0,62890.0,0.00118557]
[1719873045369,1.73436168,62891.0,62890.0,0.00118557]
[1719873045686,1.70436168,62891.0,62890.0,0.00118557]
[1719873046274,1.73436168,62891.0,62890.0,0.00118557]
[1719873047080,1.63070709,62891.0,62890.0,0.00118557]
[1719873047261,1.70516908,62891.0,62890.0,0.00118557]
[1719873047872,1.53496908,62891.0,62890.0,0.00118557]
[1719873048222,1.56496908,62891.0,62890.0,0.00118557]
[1719873048777,1.53496908,62891.0,62890.0,0.00118557]
[1719873048973,1.56496908,62891.0,62890.0,0.00118557]
[1719873050279,1.88290357,62891.0,62890.0,0.00118557]
[1719873050495,2.21156833,62891.0,62890.0,0.00118557]
[1719873050715,2.2109442,62891.0,62890.0,0.00118557]
[1719873051341,2.1968442,62891.0,62890.0,0.00118557]
[1719873051764,2.2109442,62891.0,62890.0,0.00118557]
[1719873052427,2.29359157,62891.0,62890.0,0.00118557]
[1719873053166,2.29258745,62891.0,62890.0,0.00118557]
[1719873054556,2.26258745,62891.0,62890.0,0.00118557]
[1719873054761,2.17994006,62891.0,62890.0,0.00118557]
[1719873055018,2.20994006,62891.0,62890.0,0.00118557]
[1719873055426,2.29314616,62891.0,62890.0,0.00118557]
[1719873055866,2.29314616,62891.0,62890.0,0.00128557]
[1719873056293,2.14255045,62891.0,62890.0,0.00128557]
[1719873056469,2.29342435,62891.0,62890.0,0.00128557]
[1719873056978,2.26342435,62891.0,62890.0,0.00128557]
[1719873057183,2.29342435,62891.0,62890.0,0.00128557]
[1719873059402,2.29048177,62891.0,62890.0,0.00128557]
[1719873061110,2.26048177,62891.0,62890.0,0.00128557]
[1719873061546,1.46186177,62891.0,62890.0,0.00128557]
[1719873061921,0.68419755,62891.0,62890.0,0.16029257]
[1719873062124,0.43585293,62891.0,62890.0,0.32269257]
[1719873062471,0.43585293,62891.0,62890.0,0.95872257]
[1719873062472,0.13670872,62891.0,62890.0,0.95872257]
[1719873062623,0.08759892,62891.0,62890.0,0.95872257]
[1719873062783,0.07359892,62891.0,62890.0,0.95872257]
[1719873063187,0.08759892,62891.0,62890.0,1.29428825]
[1719873063406,0.04028973,62891.0,62890.0,1.29428825]
[1719873063980,0.02628973,62891.0,62890.0,1.27673757]
[1719873064283,0.03728973,62891.0,62890.0,1.29428825]
[1719873064631,0.00104,62891.0,62890.0,0.95872257]
[1719873064841,0.35701445,62891.0,62890.0,0.32269257]
[1719873065056,0.35701445,62891.0,62890.0,0.00128557]
[1719873065057,0.92632301,62891.0,62890.0,0.00128557]
[1719873065257,1.26149825,62891.0,62890.0,0.00128557]
[1719873065602,0.42673956,62891.0,62890.0,0.16029257]
[1719873065801,0.44897403,62891.0,62890.0,0.47830757]
[1719873065961,0.40912471,62891.0,62890.0,0.16029257]
[1719873066168,0.40612471,62891.0,62890.0,0.16029257]
[1719873066568,0.41912471,62891.0,62890.0,0.16029257]
[1719873066971,0.40612471,62891.0,62890.0,0.16029257]
[1719873067213,0.44597403,62891.0,62890.0,0.16029257]
[1719873067390,0.45997403,62891.0,62890.0,0.00128557]
[1719873067589,0.58246369,62891.0,62890.0,0.09478557]
[1719873067790,0.62231301,62891.0,62890.0,0.09478557]
[1719873068068,0.76835166,62891.0,62890.0,0.00128557]
[1719873068311,0.77935166,62891.0,62890.0,0.00128557]
[1719873068523,0.79695797,62891.0,62890.0,0.00128557]
[1719873068772,0.59476967,62891.0,62890.0,0.00128557]
[1719873068941,0.41815836,62891.0,62890.0,0.00128557]
[1719873069142,0.45800768,62891.0,62890.0,0.00128557]
[1719873069369,0.44700768,62891.0,62890.0,0.00128557]
[1719873069575,1.25006166,62891.0,62890.0,0.00128557]
[1719873069726,1.26766797,62891.0,62890.0,0.00128557]
[1719873069925,1.10396797,62891.0,62890.0,0.00128557]
[1719873070134,1.14695271,62891.0,62890.0,0.00128557]
[1719873070558,0.80309339,62891.0,62890.0,0.00128557]
[1719873070756,0.8253364,62891.0,62890.0,0.00128557]
[1719873070973,0.84295563,62891.0,62890.0,0.00128557]
[1719873071219,0.79300109,62891.0,62890.0,0.00128557]
[1719873071404,0.80361696,62891.0,62890.0,0.00128557]
[1719873071606,0.84346628,62891.0,62890.0,0.00128557]
[1719873072221,0.84346628,62891.0,62890.0,0.16029257]
[1719873072222,0.5221223,62891.0,62890.0,0.16029257]
[1719873072431,0.50450307,62891.0,62890.0,0.16029257]
[1719873072769,0.46465375,62891.0,62890.0,0.16029257]
[1719873072969,0.42163129,62891.0,62890.0,0.16029257]
[1719873073141,0.14019211,62891.0,62890.0,0.16029257]
[1719873073552,0.42163129,62891.0,62890.0,0.16029257]
[1719873074091,0.14019211,62891.0,62890.0,0.47830757]
[1719873074291,0.14096173,62891.0,62890.0,0.47830757]
[1719873074733,0.0641498,62891.0,62890.0,0.47830757]
[1719873074934,0.14114568,62891.0,62890.0,0.47830757]
[1719873075138,0.42258486,62891.0,62890.0,0.47830757]
[1719873075511,0.14114568,62891.0,62890.0,0.47830757]
[1719873076519,0.14114568,62891.0,62890.0,0.79632257]
[1719873076814,0.14114568,62891.0,62890.0,0.47830757]
[1719873078144,0.42258486,62891.0,62890.0,0.47830757]
[1719873078283,0.46243418,62891.0,62890.0,0.47830757]
[1719873078689,0.14114568,62891.0,62890.0,0.47830757]
[1719873080266,0.42258486,62891.0,62890.0,0.47830757]
[1719873080428,0.37121045,62891.0,62890.0,0.47830757]
[1719873080636,0.46198752,62891.0,62890.0,0.47830757]
[1719873081204,0.4221382,62891.0,62890.0,0.47830757]
[1719873081978,0.14069902,62891.0,62890.0,0.47830757]
[1719873083477,0.4221382,62891.0,62890.0,0.47830757]
[1719873083689,0.42217218,62891.0,62890.0,0.47830757]
[1719873084536,0.140733,62891.0,62890.0,0.47830757]
[1719873085815,0.4620215,62891.0,62890.0,0.47830757]
[1719873086135,0.42217218,62891.0,62890.0,0.47830757]
[1719873086316,0.140733,62891.0,62890.0,0.47830757]
[1719873086516,0.4620215,62891.0,62890.0,0.47830757]
[1719873086698,0.42217218,62891.0,62890.0,0.47830757]
[1719873086895,0.39751482,62891.0,62890.0,0.47830757]
[1719873087098,0.42324177,62891.0,62890.0,0.47830757]
[1719873087371,0.46309112,62891.0,62890.0,0.00128557]
[1719873087577,0.79529612,62891.0,62890.0,0.00128557]
[1719873087698,0.63629112,62891.0,62890.0,0.00128557]
[1719873087895,1.47447663,62891.0,62890.0,0.00128557]
[1719873088395,1.32470984,62891.0,62890.0,0.00128557]
[1719873088814,1.89205146,62891.0,62890.0,0.00128557]
[1719873089211,2.3343191,62891.0,62890.0,0.00128557]
[1719873089624,2.33432233,62891.0,62890.0,0.00128557]
[1719873090087,2.23984093,62891.0,62890.0,0.00128557]
[1719873090263,2.33410159,62891.0,62890.0,0.00128557]
[1719873090717,2.33984093,62891.0,62890.0,0.00128557]
[1719873090937,2.45766299,62891.0,62890.0,0.00128557]
[1719873091135,3.32538118,62891.0,62890.0,0.00128557]
[1719873091536,3.73625181,62891.0,62890.0,0.00128557]
[1719873091935,3.75025181,62891.0,62890.0,0.00128557]
[1719873092663,3.73625181,62891.0,62890.0,0.00128557]
[1719873092869,3.45025181,62891.0,62890.0,0.00128557]
[1719873093022,3.62391442,62891.0,62890.0,0.00128557]
[1719873093457,2.70590442,62891.0,62890.0,0.00128557]
[1719873093638,2.82365983,62891.0,62890.0,0.00128557]
[1719873093842,3.12365983,62891.0,62890.0,0.00128557]
[1719873094610,3.54771861,62891.0,62890.0,0.00128557]
[1719873094815,3.30467876,62891.0,62890.0,0.00128557]
[1719873095015,3.31957328,62891.0,62890.0,0.00128557]
[1719873095346,3.30557328,62891.0,62890.0,0.00128557]
[1719873095536,3.31957328,62891.0,62890.0,0.00128557]
[1719873096416,3.31977911,62891.0,62890.0,0.00128557]
[1719873097173,3.01977911,62891.0,62890.0,0.00128557]
[1719873097377,3.18217911,62891.0,62890.0,0.00128557]
[1719873097582,3.48217911,62891.0,62890.0,0.00128557]
[1719873097985,3.4199099,62891.0,62890.0,0.00128557]
[1719873099223,3.1059099,62891.0,62890.0,0.00128557]
[1719873099418,2.89866549,62891.0,62890.0,0.00128557]
[1719873099632,3.53982636,62891.0,62890.0,0.00128557]
[1719873100158,3.42236406,62891.0,62890.0,0.00128557]
[1719873100461,3.54003867,62891.0,62890.0,0.00128557]
[1719873101444,3.24003867,62891.0,62890.0,0.00128557]
[1719873101835,3.42236406,62891.0,62890.0,0.00128557]
[1719873102039,3.24003867,62891.0,62890.0,0.00128557]
[1719873102318,2.80435406,62891.0,62890.0,0.00128557]
[1719873102521,2.80452051,62891.0,62890.0,0.00128557]
[1719873102761,2.50452051,62891.0,62890.0,0.00128557]
[1719873102978,2.42544867,62891.0,62890.0,0.00128557]
[1719873103184,2.33132051,62891.0,62890.0,0.00128557]
[1719873104114,2.79322051,62891.0,62890.0,0.00128557]
[1719873104319,3.09322051,62891.0,62890.0,0.00128557]
[1719873104464,3.21089512,62891.0,62890.0,0.00128557]
[1719873104657,3.52890512,62891.0,62890.0,0.00128557]
[1719873104870,3.41123051,62891.0,62890.0,0.00128557]
[1719873105597,3.36802149,62891.0,62890.0,0.00128557]